Cogmind - Beta 14 @@@ ROGUE MODE // 2025.03.15 @ 11:55:52 Player: winnking222 Result: Destroyed by EL-FMA(R) with Subdweller Beam Cannon Performance ------------- Evolutions (0) 0 Regions Visited (3) 600 Robots Destroyed (28) 140 Value Destroyed (563) 563 Prototype IDs (0) 0 Alien Tech Used (0) 0 Bonus (0) 0 TOTAL SCORE: 1303 Bonus ------- None Cogmind --------- Core Integrity 0/250 Matter 280/300 Energy 87/100 System Corruption 1% Temperature Cool (11) Movement Flying (37) Location -10/Subcaves Parts ------- > --- POWER (1) -------- (None) > --- PROPULSION (2) --- Flight Unit Flight Unit > --- UTILITY (2) ------ Core Shielding > --- WEAPON (2) ------- (None) > --- INVENTORY (5) ---- Improved Ion Engine High-capacity Matter Pod (200) Core Shielding Peak State ------------ > --- POWER ------------ Improved Ion Engine > --- PROPULSION ------- Light Treads Light Treads > --- UTILITY ---------- Large Storage Unit Core Shielding > --- WEAPON ----------- Bore Cannon Rocket Launcher > --- INVENTORY -------- Improved Ion Engine Improved Ion Engine Light Treads Light Treads Flight Unit Flight Unit Flight Unit Large Storage Unit High-capacity Matter Pod Core Shielding Improved Power Shielding Particle Gun Rocket Launcher [Rating: 14] Favorites ----------- Power Improved Ion Engine Engine Improved Ion Engine Propulsion Light Treads Treads Light Treads Wheel Wheel Flight Unit Flight Unit Utility Large Storage Unit Storage Large Storage Unit Protection Core Shielding Weapon Rocket Launcher Energy Gun Particle Gun Ballistic Gun Light Assault Rifle Ballistic Cannon Bore Cannon Launcher Rocket Launcher Build | -11 -10 -10 -10 ------- Run | Yrd Mat Min Sub Slots Evolved . | . . . . Power . | . . . . Propulsion . | . . . . Utility . | . . . . Weapon . | . . . . Parts Attached 33 | 6 13 12 2 Power 4 | 1 1 2 . Engine 4 | 1 1 2 . Core . | . . . . Reactor . | . . . . Propulsion 12 | 2 3 5 2 Treads 7 | 2 3 2 . Leg . | . . . . Wheel 3 | . . 3 . Hover . | . . . . Flight 2 | . . . 2 Utility 4 | 1 3 . . Device . | . . . . Storage 3 | 1 2 . . Processor . | . . . . Hackware . | . . . . Protection 1 | . 1 . . Artifact . | . . . . Weapon 13 | 2 6 5 . Energy Gun 5 | 1 3 1 . Energy Cannon . | . . . . Ballistic Gun 2 | 1 1 . . Ballistic Cannon 1 | . . 1 . Launcher 5 | . 2 3 . Special Weapon . | . . . . Impact Weapon . | . . . . Slashing Weapon . | . . . . Piercing Weapon . | . . . . Special Melee Weapon . | . . . . Unidentified Prototypes . | . . . . Parts Lost 13 | . . 10 3 Power 2 | . . 1 1 Propulsion 7 | . . 5 2 Utility . | . . . . Weapon 4 | . . 4 . Highest Loss Streak 4 | . . 4 3 To Critical Strikes . | . . . . Average Slot Usage (%) 78 | . 86 72 51 Engine 13 | . 14 14 4 Treads 18 | . 27 9 . Wheel 3 | . . 6 14 Storage 13 | . 14 14 9 Protection 8 | . 3 14 14 Energy Gun 8 | . 15 1 . Ballistic Gun 1 | . 2 . . Ballistic Cannon 2 | . . 4 . Launcher 7 | . 8 7 . Peak Build Rating 14 | 6 11 14 7 Average Rating 8 | 4 9 8 4 On Entrance 6 | . 6 11 7 Naked Turns . | . . . . Heaviest Build 41 | 12 35 41 28 Greatest Support 40 | 40 40 40 20 Greatest Overweight (x) 9 | . 3 9 2 Average Overweight (x) . | . . 2 . Largest Inventory Capacity 15 | 8 15 15 15 Average Capacity 12 | 7 11 15 11 Most Carried 13 | 5 11 13 8 Average Carried 8 | . 7 9 6 Final Capacity 15 | 8 15 15 5 Final Carried 11 | . 11 8 3 Class Distribution -------------------- 100% | Mutant Dominant Class ---------------- Mutant | -10/Materials Mutant | -10/Mines Mutant | -10/Subcaves Resources | -11 -10 -10 -10 ----------- Run | Yrd Mat Min Sub Matter Collected 1120 | 263 391 466 . Remotely . | . . . . Salvage Created 788 | 69 519 200 . Parts 52 | 4 34 14 . Haulers Intercepted 1 | . 1 . . Recyclers Shooed 3 | . 2 1 . Parts Field Recycled . | . . . . Retrieved Matter . | . . . . Parts Self-Destructed 1 | . . . 1 Prevented . | . . . . Kills | -11 -10 -10 -10 ------- Run | Yrd Mat Min Sub Combat Hostiles Destroyed 21 | . 11 10 . Guns 5 | . 5 . . Cannons 2 | . . 2 . AOE 14 | . 6 8 . Classes Destroyed 10 | 1 6 3 . Worker 1 | . 1 . . Builder 2 | . . 2 . Tunneler 2 | . . 2 . Hauler 1 | . 1 . . Recycler 6 | 1 2 3 . Operator 1 | . 1 . . Watcher 2 | . 2 . . Swarmer 3 | . 3 . . Grunt 10 | . 8 2 . Assembled 8 | . . 8 . Best Kill Streak 6 | 1 6 4 . Combat Bots Only 5 | . 5 2 . Max Kills in Single Turn 4 | 1 4 2 . Gunslinging . | . . . . Exploded 2 | . 2 2 . Melee . | . . . . Uniques/NPCs Destroyed . | . . . . Combat | -11 -10 -10 -10 -------- Run | Yrd Mat Min Sub Hostile Shots Fired 121 | . 44 33 44 Missed 34 | . 13 7 14 Damage Taken 1472 | . 352 854 266 Core 256 | . 40 99 117 Absorbed by Shields . | . . . . Redirected to Shielding 40 | . . 18 22 Core Remaining (%) 100 | 100 . . . Volleys Fired 66 | 3 35 28 . Largest 2 | 2 2 2 . Hottest 130 | 60 130 98 . Shots Fired 116 | 6 66 44 . Gun 67 | 6 59 2 . Cannon 20 | . . 20 . Launcher 29 | . 7 22 . Special . | . . . . Kinetic 38 | 3 15 20 . Thermal 49 | 3 44 2 . Explosive 29 | . 7 22 . Electromagnetic . | . . . . Robot Hit Streak 11 | 2 11 5 . Robot Miss Streak 5 | 1 5 4 . Penetration Max . | . . . . Secondary Targets 2 | . 2 . . Max Gunslinging Chain 1 | . 1 . . Shots Hit Robots 65 | 3 42 20 . Core Hits 59 | 2 31 26 . Critical Kills . | . . . . Critical Parts Destroyed 1 | . . 1 . Critical Strikes 3 | . . 3 . Burn 1 | . . 1 . Destroy 2 | . . 2 . Melee Attacks . | . . . . Impact . | . . . . Slashing . | . . . . Piercing . | . . . . Sneak Attacks . | . . . . Combat Hostiles . | . . . . Follow-up Attacks . | . . . . Damage Inflicted 2519 | 30 1084 1405 . Guns 540 | 30 480 30 . Cannons 168 | . . 168 . Explosions 1811 | . 604 1207 . Melee . | . . . . Ramming . | . . . . Kinetic 273 | 7 98 168 . Thermal 435 | 23 382 30 . Explosive 1811 | . 604 1207 . Electromagnetic . | . . . . Impact . | . . . . Slashing . | . . . . Piercing . | . . . . Highest Corruption 1 | . . 1 1 Average Corruption 1 | . . 1 1 Corruption Purged . | . . . . Corruption Blocked . | . . . . Overload Shots . | . . . . Overflow Damage 122 | . 49 73 . Projectiles . | . . . . Explosions 122 | . 49 73 . Melee . | . . . . Knockbacks 1 | . . 1 . Impact . | . . . . Kinetic 1 | . . 1 . Secondary . | . . . . Self-Inflicted Damage 178 | . 15 163 . Shots 6 | . 1 5 . Rammed . | . . . . Targets Rammed . | . . . . Kicked . | . . . . Crushed . | . . . . Highest Temperature 504 | 40 504 146 . Average Temperature 106 | 19 140 62 . Received Heat Transfer 186 | . 147 30 9 Effects 4 | . 4 . . Shutdowns 2 | . 2 . . Energy Bleed 1 | . 1 . . Short Circuit 1 | . 1 . . Siege Activations . | . . . . Robots Corrupted . | . . . . Combat Hostiles . | . . . . Parts Fried . | . . . . Impact Corruptions . | . . . . Robots Melted . | . . . . Combat Hostiles . | . . . . Parts Melted 1 | . 1 . . Heat Transferred 1114 | 50 916 148 . Parts Sabotaged . | . . . . Parts Stolen . | . . . . Parts Stripped . | . . . . Power Chain Reactions . | . . . . Alert | -11 -10 -10 -10 ------- Run | Yrd Mat Min Sub Peak Influence 275 | 5 275 133 . Initial 46 | . 3 46 . Average 92 | 1 139 49 . Maximum Alert Level 1 | . 1 . . Low Security (%) 89 | 100 78 100 . Level 1 10 | . 21 . . Level 2 . | . . . . Level 3 . | . . . . Level 4 . | . . . . Level 5 . | . . . . High Security . | . . . . Max Security . | . . . . Squads Dispatched 1 | . 1 . . Investigation . | . . . . Extermination . | . . . . Reinforcement 1 | . 1 . . Assault . | . . . . Garrison . | . . . . Intercept . | . . . . Searches Triggered . | . . . . Construction Impeded . | . . . . Haulers Reinforced . | . . . . Active Scanning Responses . | . . . . Cargo Convoy Interrupts . | . . . . Stealth | -11 -10 -10 -10 --------- Run | Yrd Mat Min Sub Distress Signals 2 | . 2 . . Communications Jammed . | . . . . Distress Signals . | . . . . Times Spotted 46 | . 25 13 8 Peak Tracking Total 6 | . 6 3 4 Tactical Retreats 4 | . . 2 2 Traps | -11 -10 -10 -10 ------- Run | Yrd Mat Min Sub Traps Triggered 2 | . 1 1 . Indirectly . | . . . . Trap Hack Attempts . | . . . . Triggered . | . . . . Disarmed . | . . . . Reprogrammed . | . . . . Reused . | . . . . Traps Extracted . | . . . . Installed . | . . . . Triggered . | . . . . Machines | -11 -10 -10 -10 ---------- Run | Yrd Mat Min Sub Machines Disabled 3 | . 2 1 . Max in Single Turn 1 | . 1 1 . Machines Repaired . | . . . . Machines Dismantled . | . . . . Machines Sabotaged . | . . . . Overloaded Fab Kills . | . . . . Hacking | -11 -10 -10 -10 --------- Run | Yrd Mat Min Sub Machines Accessed 6 | . 5 1 . Terminals 4 | . 4 . . Fabricators . | . . . . Repair Stations . | . . . . Recycling Units 1 | . 1 . . Scanalyzers . | . . . . Garrison Access . | . . . . Total Hacks 12 | . 11 1 . Successful 8 | . 7 1 . Failed 4 | . 4 . . Catastrophic . | . . . . Database Lockouts . | . . . . Manual 1 | . 1 . . Terminals 7 | . 7 . . Fabricators . | . . . . Repair Stations . | . . . . Recycling Units 4 | . 4 . . Scanalyzers . | . . . . Garrison Access . | . . . . Terminal Hacks 6 | . 5 1 . Open Door 1 | . . 1 . Branch Access Points 1 | . 1 . . Emergency Access Points 1 | . 1 . . Locate Traps 1 | . 1 . . Registered Prototypes 1 | . 1 . . Zone Layout 1 | . 1 . . Fabricator Hacks . | . . . . Repair Station Hacks . | . . . . Recycling Unit Hacks 2 | . 2 . . Report Inventory 1 | . 1 . . Retrieve Matter 1 | . 1 . . Scanalyzer . | . . . . Garrison Access Hacks . | . . . . Unauthorized Hacks . | . . . . Terminals . | . . . . Fabricators . | . . . . Repair Stations . | . . . . Recycling Units . | . . . . Scanalyzers . | . . . . Garrison Access . | . . . . Data Cores Recovered . | . . . . Used . | . . . . Hacking Detections 1 | . 1 . . Full Trace Events . | . . . . Feedback Events . | . . . . Feedback Blocked . | . . . . Robot Schematics Acquired . | . . . . Robots Built . | . . . . Authchips . | . . . . Time . | . . . . Total Robot Build Rating . | . . . . Part Schematics Acquired . | . . . . Parts Built . | . . . . Authchips . | . . . . Time . | . . . . Total Part Build Rating . | . . . . Parts Repaired . | . . . . Time . | . . . . Parts Recycled . | . . . . Recycled Matter . | . . . . Retrieved Matter 21 | . 21 . . Retrieved Components . | . . . . Parts Scanalyzed . | . . . . Part Schematics Acquired . | . . . . Parts Damaged . | . . . . Bothacking | -11 -10 -10 -10 ------------ Run | Yrd Mat Min Sub Used RIF Installer . | . . . . Robots Hacked . | . . . . Non-combat . | . . . . Combat . | . . . . Robot Hacks Applied . | . . . . Relay Couplers Released . | . . . . Fabnet Peak Effective % . | . . . . Robots Rewired . | . . . . Allies Hacked . | . . . . Hacks Repelled . | . . . . Allies | -11 -10 -10 -10 -------- Run | Yrd Mat Min Sub Total Allies . | . . . . Largest Group . | . . . . Highest-Rated Group . | . . . . Highest-Rated Ally . | . . . . Total Orders . | . . . . Ally Attacks . | . . . . Total Damage . | . . . . Kills . | . . . . Allies Corrupted . | . . . . Allies Melted . | . . . . Intel | -11 -10 -10 -10 ------- Run | Yrd Mat Min Sub Robot Analysis Total . | . . . . Derelict Logs Recovered 2 | . . 1 1 Drone Launches . | . . . . Drone Recoveries . | . . . . Exploration | -11 -10 -10 -10 ------------- Run | Yrd Mat Min Sub Turns Passed 2384 | 84 1155 1081 64 Spaces Moved 1236 | 55 586 503 92 Core 102 | 21 20 61 . Treads 780 | 34 566 180 . Legs . | . . . . Wheels 305 | . . 262 43 Hover . | . . . . Flight 49 | . . . 49 Fastest Speed 37 | 50 160 95 37 Average Speed 166 | 118 161 195 66 Slowest Speed 500 | 160 200 500 110 Overloaded Moves . | . . . . Propulsion Burnouts . | . . . . Robots Hopped . | . . . . Cave-ins Triggered . | . . . . Exploration Rate (%) 49 | 4 83 98 14 Regions Visited 3 Branch Regions 2 Pre-discovered Areas . | . . . . Known Exits Taken 1 | . 1 . . Unknown Exits Taken 2 | 1 . 1 . Scrap Searched . | . . . . Spaces Dug . | . . . . Terrain Destroyed 216 | . 44 172 . Melee . | . . . . Projectile 15 | . . 15 . AOE 201 | . 44 157 . Terrain Rammed . | . . . . Walls Destroyed . | . . . . Machines Disabled . | . . . . Actions | -11 -10 -10 -10 --------- Run | Yrd Mat Min Sub Total 1450 | 69 733 553 95 Wait 79 | . 73 6 . Move 1233 | 54 585 502 92 Hop . | . . . . Pick Up 32 | 6 21 5 . Fast Attach . | . . . . Attach 23 | 6 7 8 2 Detach . | . . . . Swap 10 | . 6 4 . Drop 7 | . 6 . 1 Fire 66 | 3 35 28 . Melee . | . . . . Ram . | . . . . Kick . | . . . . Crush . | . . . . Escape Stasis . | . . . . Rewire . | . . . . Trap . | . . . . Miscellaneous . | . . . . Route ------- -11/Scrapyard -10/Materials (discovered 4 exits: [*Mat x3] / *Min) -10/Mines (discovered 3 exits: [*Mat x2] / [*Sub]) -10/Subcaves History --------- Turn | Location | Event 9 | -11/Scrapyard | Discovered new exit (range 15) 85 | -11/Scrapyard | Entered Materials 291 | -10/Materials | Identified exit to Mines 317 | -10/Materials | Build established: Mutant 446 | -10/Materials | Discovered new exit (range 15) 713 | -10/Materials | Discovered new exit (range 9) 1000 | -10/Materials | Discovered new exit (range 4) 1240 | -10/Materials | Entered Mines 1243 | -10/Mines | Assembled infested the area 1261 | -10/Mines | Met a Derelict who couldn't figure out how to use a Trap Extractor 1294 | -10/Mines | Discovered new exit (range 12) 1333 | -10/Mines | Discovered new exit (range 16) 1342 | -10/Mines | A weapon hastily lodged in a ceiling crevice suddenly fell to the ground 1795 | -10/Mines | Core integrity fell below 50% 1825 | -10/Mines | Lost 4 parts (1p1n2w) 2108 | -10/Mines | Learned location of 1 exit from Materials 2307 | -10/Mines | Discovered new exit (range 12) 2321 | -10/Mines | Entered Subcaves 2321 | -10/Subcaves | Learned location of 1 exit from Materials 2360 | -10/Subcaves | Core integrity fell below 20% 2385 | -10/Subcaves | Destroyed by EL-FMA(R) with Subdweller Beam Cannon Last Messages --------------- the best way to defend their interests would be to start expanding in this direction." 02277_ K-01 Serf collects debris. 02292_ U-05 Engineer builds a Wall. 02297_ K-01 Serf collects debris. 02297_ U-05 Engineer lays Concrete. 02300_ K-01 Serf collects debris. 02301_ U-05 Engineer lays Concrete. 02303_ K-01 Serf collects debris. 02307_ EXIT=FOUND 02310_ K-01 Serf collects debris. LOCATION=UNKNOWN AMBIENT_HEAT=-10 GOAL=ESCAPE 02321_ Acquired derelict log, extracted data. Data stored: Materials exits (x1). 02340_ Imp. Ion Engine destroyed. 02349_ Wheel destroyed. 02364_ Dropped Lrg. Storage Unit. 02366_ S-10 Pest destroyed. Map ----- +----------------------------------------------------+ | ?????????????????????????????????????????????????? | | ?????????????????????????????????????????????????? | | ?????????????????????????????????????????????????? | | ?????????????????????????? ?????????????????????? | | ????????????????????????? ?????????????????????? | | ???????????????????????? ??????????????????????? | | ???????????????? ??????? #??????????????????????? | | ???????????????? #?###? ##?????????????????????? | | ???????????#???? #" ## ??????????????????????? | | ??????????#"## ? "" ???????????????????????? | | ##???????##"" ???" ?????????????????????????? | | #????####"""#???" # #??????????????????????????? | | #???## ##""##### #???????????????????????????? | | ##### # "" ##???????????????????????????? | | " #???????????????????????????? | | #####????????????????????????? | | ###"## ## ##???????????????????????? | | ##?## ## #???????????????????????? | | #???# #????????????????????????? | | #??# ##???????????????????????? | | # ## ##### ##??????????????????????? | | #### ### ### ##?????????????????????? | | ???## ##?##### ##????????????????????? | | ????###?????# #????????????????????? | | ????????????# ### #????????????????????? | | ????????????##### ####?#@ #????????????????????? | | ????????????????###?????# #??????????????????? | | ????????????????????????# #????????????????? | | ????????????????????????# R ##????????????????? | | ???????????????????????? R ##?????????????????? | | ???????????????????????? #??????????????????? | | ???????????????????????? ??????????????????? | | ???????????????????????? ## ?????????????????? | | #???????????????????????###?## #????????????????? | | #????????????????????????????? ##????????????????? | | #?????????????????????????????? ?????????????????? | | #??????????????????????????????##????????????????? | | ?????????????????????????????????????????????????? | | ####?????????????????????????????????????????????? | | # #?????????????????????????????????????????????? | | ##?????????????????????????????????????????????? | | #?????????????????????????????????????????????? | | ##?????????????????????????????????????????????? | | # ##?????????????????????????????????????????????? | | # #?????????????????????????????????????????????? | | #?????????????????????????????????????????????? | | # ##?????????????????????????????????????????????? | | ##?????????????????????????????????????????????? | | #?????????????????????????????????????????????? | | ##?????????????????????????????????????????????? | +----------------------------------------------------+ Best States ------------- Heat Dissipation 25 Energy Generation 12 Energy Capacity 265 Matter Stores 300 Matter Capacity 300 Sight Range 16 Terrain Scan Density 10 Core Shielding 20 Evasion (%) 62 Recoil Reduction 2 Item Schematics ----------------- None Robot Schematics ------------------ None Fabricated ------------ Nothing Alien Tech Used ----------------- None Achievements -------------- None Challenges ------------ None Game ------ Seed ContainmentTargetingCorpse Manual? 0 Play Time 00:18:38 Cumulative 34.2 hours Start 2025.03.15 @ 11:29:56 End 2025.03.15 @ 11:55:52 Sessions 1 Manual Loads 0 Difficulty Rogue Special Mode None Game No. 63 Rogue 63 Adventurer 0 Explorer 0 Win Type - Total 0 Types 0/0/0/0/0/0/0/0/0 Lore% 34 Gallery% 36 Achievement% 33 Wizard Run 0 Options --------- Layout 0 ASCII 0 Keyboard 0 Movement Mouse Keybinds 0 Fullscreen 1 Font 16/SmallcapsGlow Map View 75x55 Zoom Use 0% Tactical HUD 1 Map Filters NONE Filters NONE Steam 1 RUN: 87280d2d-6a76-445f-b444-2b4abd210ca1